Cogmind - Beta 16.1 @@@ ROGUE MODE // 2026.04.16 @ 08:16:49 Player: M4-TR4 Result: Self-destructed Performance ------------- Evolutions (0) 0 Regions Visited (4) 800 Robots Destroyed (30) 150 Value Destroyed (536) 536 Prototype IDs (2) 40 Alien Tech Used (0) 0 Bonus (0) 0 TOTAL SCORE: 1526 Bonus ------- None Cogmind --------- Core Integrity 27/250 Matter 300/300 Energy 100/100 System Corruption 1% Temperature Cool (40) Movement Walking (120) Location -9/Mines Parts ------- > --- POWER (1) -------- (None) > --- PROPULSION (2) --- Aluminum Leg > --- UTILITY (2) ------ Small Storage Unit Melee Analysis Suite > --- WEAPON (2) ------- Light Assault Rifle Katana > --- INVENTORY (8) ---- Aluminum Leg Wheel Large Storage Unit High-capacity Storage Unit Light Assault Rifle Light Cannon Rocket Launcher Peak State ------------ > --- POWER ------------ Ion Engine > --- PROPULSION ------- Aluminum Leg Aluminum Leg > --- UTILITY ---------- Large Storage Unit Improved Terrain Scanner > --- WEAPON ----------- Light Cannon Katana > --- INVENTORY -------- Aluminum Leg Wheel Heat Sink Small Storage Unit High-capacity Storage Unit Melee Analysis Suite Small Laser Assault Rifle Light Assault Rifle Light Assault Rifle Light Assault Rifle Rocket Launcher [Rating: 12] Favorites ----------- Power Ion Engine Engine Ion Engine Propulsion Aluminum Leg Leg Aluminum Leg Wheel Wheel Utility Large Storage Unit Device Improved Terrain Scanner Storage Large Storage Unit Processor Melee Analysis Suite Weapon Light Cannon Energy Gun Small Laser Ballistic Gun Assault Rifle Ballistic Cannon Light Cannon Launcher Rocket Launcher Slashing Weapon Katana Build | -11 -10 -10 -10 -9 ------- Run | Yrd Mat Min Exi Min Slots Evolved . | . . . . . Power . | . . . . . Propulsion . | . . . . . Utility . | . . . . . Weapon . | . . . . . Parts Attached 20 | 7 7 . . 6 Power 2 | 1 1 . . . Engine 2 | 1 1 . . . Core . | . . . . . Reactor . | . . . . . Propulsion 6 | 2 2 . . 2 Treads . | . . . . . Leg 3 | . 2 . . 1 Wheel 3 | 2 . . . 1 Hover . | . . . . . Flight . | . . . . . Utility 5 | 2 2 . . 1 Device 2 | 1 1 . . . Storage 2 | 1 1 . . . Processor 1 | . . . . 1 Hackware . | . . . . . Protection . | . . . . . Artifact . | . . . . . Weapon 7 | 2 2 . . 3 Energy Gun 2 | 1 1 . . . Energy Cannon . | . . . . . Ballistic Gun 2 | 1 . . . 1 Ballistic Cannon 1 | . 1 . . . Launcher 1 | . . . . 1 Special Weapon . | . . . . . Impact Weapon . | . . . . . Slashing Weapon 1 | . . . . 1 Piercing Weapon . | . . . . . Special Melee Weapon . | . . . . . Unidentified Prototypes . | . . . . . Parts Lost 7 | . 4 . . 3 Power 1 | . . . . 1 Propulsion 4 | . 2 . . 2 Utility 1 | . 1 . . . Weapon 1 | . 1 . . . Highest Loss Streak 3 | . 3 . . 2 To Critical Strikes . | . . . . . Average Backups 8 | 2 7 8 8 9 Power . | . . . . . Propulsion 2 | 1 2 3 3 2 Utility 2 | . 2 3 3 3 Weapon 2 | . 1 2 2 4 Tool/Special . | . . . . . Unused Backups 5 | . . . . 5 Power . | . . . . . Propulsion 1 | . . . . 1 Utility 2 | . . . . 2 Weapon 2 | . . . . 2 Tool/Special . | . . . . . Average Slot Usage (%) 94 | . 88 100 100 97 Engine 10 | . 5 14 14 14 Leg 24 | . 19 28 28 27 Wheel 2 | . 6 . . . Device 10 | . 13 14 14 6 Storage 14 | . 14 14 14 14 Processor 2 | . . . . 7 Energy Gun 9 | . 13 14 14 2 Ballistic Gun 3 | . 5 . . 2 Ballistic Cannon 10 | . 8 14 14 10 Launcher 1 | . . . . 3 Slashing Weapon 2 | . . . . 7 Peak Build Rating 12 | 7 9 9 9 12 Average Rating 8 | 5 7 9 9 10 On Entrance 6 | . 7 9 9 9 Avg Prop Armor Cover (%) . | . . . . . Naked Turns . | . . . . . Heaviest Build 33 | 15 30 30 30 33 Greatest Support 20 | 20 20 20 20 20 Greatest Overweight (x) 2 | 1 2 1 1 1 Average Overweight (x) . | . 1 1 1 . Largest Inventory Capacity 15 | 8 15 15 15 15 Average Capacity 13 | 7 14 15 15 13 Most Carried 13 | 4 9 8 8 13 Average Carried 8 | 3 7 8 8 9 Final Capacity 15 | 8 15 15 15 8 Final Carried 8 | 4 8 8 8 7 Class Distribution -------------------- 100% | Mutant Dominant Class ---------------- Mutant | -10/Materials Mutant | -10/Mines Mutant | -10/Exiles Mutant | -9/Mines Resources | -11 -10 -10 -10 -9 ----------- Run | Yrd Mat Min Exi Min Matter Collected 641 | 302 207 24 . 108 Remotely . | . . . . . Salvage Created 838 | 186 473 . . 179 Parts 54 | 10 30 . . 14 Haulers Intercepted 1 | . 1 . . . Recyclers Shooed 1 | 1 . . . . Parts Field Recycled . | . . . . . Retrieved Matter . | . . . . . Parts Self-Destructed . | . . . . . Prevented . | . . . . . Parts Restored . | . . . . . Kills | -11 -10 -10 -10 -9 ------- Run | Yrd Mat Min Exi Min Combat Hostiles Destroyed 24 | . 16 . . 8 Melee 2 | . . . . 2 Guns 11 | . 10 . . 1 Cannons 8 | . 6 . . 2 AOE 3 | . . . . 3 Classes Destroyed 7 | 2 3 . . 2 Tunneler 6 | 4 1 . . 1 Hauler 1 | . 1 . . . Recycler 1 | 1 . . . . Swarmer 12 | . 9 . . 3 Grunt 9 | . 7 . . 2 Duelist 1 | . . . . 1 Assembled 2 | . . . . 2 Best Kill Streak 5 | 3 5 . . 4 Combat Bots Only 4 | . 4 . . 3 Max Kills in Single Turn 4 | 1 2 . . 4 Gunslinging . | . . . . . Exploded 3 | . . . . 3 Melee 1 | . . . . 1 Uniques/NPCs Destroyed . | . . . . . Combat | -11 -10 -10 -10 -9 -------- Run | Yrd Mat Min Exi Min Hostile Shots Fired 124 | . 78 16 . 30 Missed 25 | . 13 7 . 5 Hits 99 | . 65 9 . 25 Melee 2 | . . . . 2 Projectile 97 | . 65 9 . 23 Critical Strikes 1 | . 1 . . . Part Disruptions 1 | . . . . 1 Damage Taken 1147 | . 731 64 . 352 Core 223 | . 116 13 . 94 Absorbed by Shields . | . . . . . Core Remaining (%) 100 | 100 . . . . Volleys Fired 69 | 15 49 . . 5 Largest 2 | 2 2 . . 2 Hottest 70 | 70 70 . . 50 Shots Fired 131 | 30 93 . . 8 Gun 108 | 30 74 . . 4 Cannon 22 | . 19 . . 3 Launcher 1 | . . . . 1 Special . | . . . . . Kinetic 71 | 15 49 . . 7 Thermal 59 | 15 44 . . . Explosive 1 | . . . . 1 Electromagnetic . | . . . . . Robot Hit Streak 8 | 6 8 . . 7 Robot Miss Streak 4 | 2 4 . . 1 Penetration Max . | . . . . . Secondary Targets . | . . . . . Shots Hit Robots 85 | 22 54 . . 9 Core Hits 41 | 6 23 . . 12 Critical Kills . | . . . . . Critical Parts Destroyed . | . . . . . Critical Strikes 1 | . 1 . . . Blast 1 | . 1 . . . Melee Attacks 5 | . . . . 5 Impact . | . . . . . Slashing 5 | . . . . 5 Piercing . | . . . . . Sneak Attacks . | . . . . . Combat Hostiles . | . . . . . Follow-up Attacks . | . . . . . Damage Inflicted 1409 | 293 758 . . 358 Guns 903 | 293 573 . . 37 Cannons 224 | . 174 . . 50 Explosions 152 | . . . . 152 Melee 119 | . . . . 119 Ramming 11 | . 11 . . . Kinetic 636 | 143 406 . . 87 Thermal 491 | 150 341 . . . Explosive 152 | . . . . 152 Electromagnetic . | . . . . . Impact . | . . . . . Slashing 119 | . . . . 119 Piercing . | . . . . . Highest Corruption 1 | . . . . 1 Average Corruption 1 | . . . . 1 Corruption Purged . | . . . . . Corruption Blocked . | . . . . . Overload Shots . | . . . . . Overflow Damage 17 | . 11 . . 6 Projectiles 11 | . 11 . . . Explosions . | . . . . . Melee 6 | . . . . 6 Knockbacks . | . . . . . Impact . | . . . . . Kinetic . | . . . . . Secondary . | . . . . . Self-Inflicted Damage 3 | . 3 . . . Shots . | . . . . . Rammed 1 | . 1 . . . Targets Rammed 2 | . 2 . . . Kicked 1 | . 1 . . . Crushed . | . . . . . Highest Temperature 161 | 45 161 . . 31 Average Temperature 34 | 21 48 . . 10 Received Heat Transfer 383 | . 195 . . 188 Siege Activations . | . . . . . Martial Activations . | . . . . . Shielding Activations . | . . . . . Robots Disrupted . | . . . . . Combat Hostiles . | . . . . . Robots Corrupted . | . . . . . Combat Hostiles . | . . . . . Parts Fried . | . . . . . Impact Corruptions . | . . . . . Robots Melted . | . . . . . Combat Hostiles . | . . . . . Parts Melted 1 | 1 . . . . Heat Transferred 1361 | 444 917 . . . Parts Sabotaged . | . . . . . Parts Stolen . | . . . . . Parts Stripped . | . . . . . Power Chain Reactions . | . . . . . Alert | -11 -10 -10 -10 -9 ------- Run | Yrd Mat Min Exi Min Maximum Alert Level . | . . . . . Low Security (%) 100 | 100 100 100 . 100 Level 1 . | . . . . . Level 2 . | . . . . . Level 3 . | . . . . . Level 4 . | . . . . . Level 5 . | . . . . . High Security . | . . . . . Max Security . | . . . . . Peak Influence 138 | 15 138 52 . 83 Initial 42 | . . 42 . . Average 21 | 2 34 36 . 10 Influence Increases 616 | 25 408 30 . 153 Destroy 0b10 Robot/C 440 | . 320 . . 120 Destroy 0b10 Robot/NC 40 | 25 10 . . 5 Destroy Leader 82 | . 62 . . 20 Successful Hack 14 | . 14 . . . Destroy Structure 10 | . 2 . . 8 Lose Combat Pursuer 30 | . . 30 . . Influence Decreases 616 | 25 300 96 42 153 Entered New Map 108 | . . 66 42 . Time Decay 458 | 25 260 30 . 143 Lost Part 50 | . 40 . . 10 Squads Dispatched 2 | . 2 . . . Investigation 1 | . 1 . . . Extermination . | . . . . . Reinforcement 1 | . 1 . . . Assault . | . . . . . Garrison . | . . . . . Intercept . | . . . . . Searches Triggered . | . . . . . Construction Impeded . | . . . . . Haulers Reinforced . | . . . . . Active Scanning Responses . | . . . . . Cargo Convoy Interrupts . | . . . . . Stealth | -11 -10 -10 -10 -9 --------- Run | Yrd Mat Min Exi Min Distress Signals 1 | . 1 . . . Communications Jammed . | . . . . . Distress Signals . | . . . . . Times Spotted 43 | . 24 2 . 17 Peak Tracking Total 6 | . 5 3 . 6 Tactical Retreats 1 | . . 1 . . Traps | -11 -10 -10 -10 -9 ------- Run | Yrd Mat Min Exi Min Traps Triggered 4 | . 4 . . . Indirectly . | . . . . . Trap Hack Attempts . | . . . . . Triggered . | . . . . . Disarmed . | . . . . . Reprogrammed . | . . . . . Reused . | . . . . . Traps Extracted . | . . . . . Installed . | . . . . . Triggered . | . . . . . Machines | -11 -10 -10 -10 -9 ---------- Run | Yrd Mat Min Exi Min Machines Disabled . | . . . . . Max in Single Turn . | . . . . . Machines Repaired . | . . . . . Machines Dismantled . | . . . . . Machines Sabotaged . | . . . . . Overloaded Fab Kills . | . . . . . Hacking | -11 -10 -10 -10 -9 --------- Run | Yrd Mat Min Exi Min Machines Accessed 6 | . 6 . . . Terminals 5 | . 5 . . . Fabricators . | . . . . . Repair Stations . | . . . . . Recycling Units 1 | . 1 . . . Scanalyzers . | . . . . . Garrison Access . | . . . . . Total Hacks 25 | . 25 . . . Successful 11 | . 11 . . . Failed 14 | . 14 . . . Catastrophic 1 | . 1 . . . Database Lockouts . | . . . . . Manual 22 | . 19 . 3 . Terminals 24 | . 24 . . . Fabricators . | . . . . . Repair Stations . | . . . . . Recycling Units 1 | . 1 . . . Scanalyzers . | . . . . . Garrison Access . | . . . . . Terminal Hacks 6 | . 6 . . . Record 1 | . 1 . . . Part Schematic 1 | . 1 . . . Prototype ID Bank 1 | . 1 . . . Branch Access Points 1 | . 1 . . . Hauler Manifests 2 | . 2 . . . Fabricator Hacks . | . . . . . Repair Station Hacks . | . . . . . Recycling Unit Hacks 1 | . 1 . . . Retrieve Components 1 | . 1 . . . Scanalyzer . | . . . . . Garrison Access Hacks . | . . . . . Unauthorized Hacks 3 | . 3 . . . Terminals 3 | . 3 . . . Botnet 3 | . 3 . . . Fabricators . | . . . . . Repair Stations . | . . . . . Recycling Units . | . . . . . Scanalyzers . | . . . . . Garrison Access . | . . . . . Data Cores Recovered . | . . . . . Used . | . . . . . Hacking Detections 5 | . 5 . . . Full Trace Events . | . . . . . Feedback Events . | . . . . . Feedback Blocked . | . . . . . Robot Schematics Acquired . | . . . . . Robots Built . | . . . . . Authchips . | . . . . . Time . | . . . . . Total Robot Build Rating . | . . . . . Part Schematics Acquired 1 | . 1 . . . Parts Built . | . . . . . Authchips . | . . . . . Time . | . . . . . Total Part Build Rating . | . . . . . Part Studies Acquired . | . . . . . Parts Repaired . | . . . . . Time . | . . . . . Parts Recycled . | . . . . . Recycled Matter . | . . . . . Retrieved Matter . | . . . . . Retrieved Components 10 | . 10 . . . Parts Scanalyzed . | . . . . . Part Schematics Acquired . | . . . . . Parts Damaged . | . . . . . Bothacking | -11 -10 -10 -10 -9 ------------ Run | Yrd Mat Min Exi Min Used RIF Installer . | . . . . . Robots Hacked . | . . . . . Non-combat . | . . . . . Combat . | . . . . . Robot Hacks Applied . | . . . . . Relay Couplers Released . | . . . . . Fabnet Peak Effective % . | . . . . . Robots Rewired . | . . . . . Allies Hacked . | . . . . . Hacks Repelled . | . . . . . Allies | -11 -10 -10 -10 -9 -------- Run | Yrd Mat Min Exi Min Total Allies 3 | . . . . 3 Largest Group 3 | . . . . 3 Highest-Rated Group 40 | . . . . 40 Highest-Rated Ally 16 | . . . . 16 Total Orders . | . . . . . Ally Attacks 38 | . . . . 38 Total Damage 393 | . . . . 393 Kills 4 | . . . . 4 Allies Corrupted . | . . . . . Allies Melted . | . . . . . Intel | -11 -10 -10 -10 -9 ------- Run | Yrd Mat Min Exi Min Active Infowar (turns) 1943 | 4 924 67 512 436 Terrain 1633 | . 618 67 512 436 Seismic 310 | 4 306 . . . Robot Analysis Total . | . . . . . Derelict Logs Recovered 2 | . . . . 2 Drone Launches . | . . . . . Drone Recoveries . | . . . . . Exploration | -11 -10 -10 -10 -9 ------------- Run | Yrd Mat Min Exi Min Turns Passed 2627 | 129 941 67 512 978 Spaces Moved 1423 | 72 510 36 270 535 Core 10 | 10 . . . . Treads . | . . . . . Legs 1122 | . 281 36 270 535 Wheels 291 | 62 229 . . . Hover . | . . . . . Flight . | . . . . . Fastest Speed 50 | 50 80 190 190 120 Average Speed 160 | 78 147 190 190 166 Slowest Speed 190 | 100 190 190 190 190 Overloaded Moves . | . . . . . Propulsion Burnouts . | . . . . . Robots Hopped . | . . . . . Potential Cave-ins . | . . . . . Cave-ins Triggered . | . . . . . Exploration Rate (%) 53 | 5 94 14 63 93 Regions Visited 4 Branch Regions 3 Pre-discovered Areas 2 | . . 1 . 1 Known Exits Taken 1 | . 1 . . . Unknown Exits Taken 3 | 1 . 1 1 . Scrap Searched 2 | . . 1 . 1 Spaces Dug 8 | . . . . 8 Terrain Destroyed 8 | . . . . 8 Melee . | . . . . . Projectile . | . . . . . AOE 8 | . . . . 8 Terrain Rammed . | . . . . . Walls Destroyed . | . . . . . Machines Disabled . | . . . . . Actions | -11 -10 -10 -10 -9 --------- Run | Yrd Mat Min Exi Min Total 1625 | 110 603 35 269 608 Wait 85 | 13 28 . . 44 Move 1419 | 71 509 35 269 535 Hop . | . . . . . Pick Up 16 | 4 7 . . 5 Fast Attach 8 | 7 1 . . . Attach 6 | . 4 . . 2 Detach 1 | . . . . 1 Swap 9 | . 3 . . 6 Drop 5 | . . . . 5 Fire 69 | 15 49 . . 5 Melee 5 | . . . . 5 Ram 1 | . 1 . . . Kick 1 | . 1 . . . Crush . | . . . . . Escape Stasis . | . . . . . Rewire . | . . . . . Trap . | . . . . . Miscellaneous . | . . . . . Route ------- -11/Scrapyard -10/Materials (discovered 4 exits: [*Mat x3] / *Min) -10/Mines -10/Exiles -9/Mines (discovered 2 exits: [*Mat x2]) History --------- Turn | Location | Event 28 | -11/Scrapyard | Discovered new exit (range 15) 130 | -11/Scrapyard | Entered Materials 217 | -10/Materials | Identified exit to Mines 264 | -10/Materials | Discovered new exit (range 16) 310 | -10/Materials | Build established: Mutant 467 | -10/Materials | Lost 3 parts (1n1u1w) 637 | -10/Materials | Discovered new exit (range 8) 869 | -10/Materials | Discovered new exit (range 5) 1071 | -10/Materials | Entered Mines 1072 | -10/Mines | Learned location of Storage (-7) 1114 | -10/Mines | Core integrity fell below 50% 1130 | -10/Mines | Deemed a non-threat by the Exiles lab entrance 1130 | -10/Mines | Discovered new exit (range 5) 1138 | -10/Mines | Entered Exiles 1138 | -10/Exiles | Found Exiles lab abandoned 1629 | -10/Exiles | Discovered new exit (range 12) 1650 | -10/Exiles | Entered Mines 1793 | -9/Mines | Received a Rocket Launcher from a helpful Derelict 2077 | -9/Mines | Learned location of 1 exit from Lower Caves 2186 | -9/Mines | Discovered new exit (range 10) 2448 | -9/Mines | Discovered new exit (range 8) 2487 | -9/Mines | Assembled infested the area 2492 | -9/Mines | Assisted by a Guerilla fighting off Assembled 2521 | -9/Mines | Assisted by bots powering up and referring to "LRC-V3" 2628 | -9/Mines | Self-destructed Last Messages --------------- 02448_ EXIT=FOUND 02487_ ALERT: Infestation in the mines, dispatching Demolisher response squad. 02521_ Trooper 2a: "Hello LRC-V3. What is your command?" 02521_ Mercenary 2a: "Hello LRC-V3. What is your command?" 02521_ Trooper 2b: "Hello LRC-V3. What is your command?" 02561_ as-89957 destroyed. 02578_ Destroyed Asb. F-torch. 02579_ as-84942 destroyed. 02579_ Acquired 10 matter. 02580_ Trooper 2a heat damages Particle Gun. 02582_ Mercenary 2a destroyed. 02584_ Destroyed Asb. F-torch. 02585_ as-93629 destroyed. 02587_ Acquired 11 matter. 02619_ as-94405 destroyed. 02625_ Aluminum Leg destroyed. 02625_ Destroyed Asb. F-torch. 02626_ Ion Engine destroyed. 02626_ System corrupted by crushing effect (+1). Map ----- +----------------------------------------------------+ | ???????#####??????# #???????? | | ######## ##?????# #???????? | | ## ##????# #???????? | | #### ##??###### #???????? | | ???##### #??# #???????? | | ???????## #### #### #???????? | | ????????## #??##### ####???????? | | ##???????# #########??????# #??????????? | | #???????# #??????????????# ###????????? | | #???????# ??????????????# #????????? | | #??????? #??????????????## %#????????? | | #??????? #???????????????# !#????????? | | #?????? ???????????????# #????????? | | #?????? ???????????????#% #????????? | | #?????? ???????#???????#%%#????????? | | #????? ??????? ??????# ###??????? | | #### #???????# ??????# ##?????? | | #???????# ?????# ##????? | | ###### #????#### ????## #????? | | ??????? ? #????## #???# #????? | | ?????????#?????# ???# ##????? | | #?####????????## ??## #?????? | | ?## ##??????## ???# #?????? | | ?# #??????# #?## ##?????? | | ?? #?????#?# a ## ##??????? | | ?? ?#????#????# a @ #???????? | | ??# #???????????## aa % g ##??????? | | ??# #????????????# g #??????? | | ??# #??#????????# #??????? | | ### ##?????????# ## ##??###?? | | ## ##???#?????# #?## ##??## ##? | | ######?#??## ???### ##????# #? | | % #### ##???### ?#????####????## #? | | ## #########?#???#???????## #? | | ## % % ] ! #?????#??????## ##? | | ### %[ #?????#?#???## #?? | | #### ####### #???????????# ##?? | | ?### # ##???#?# #?####??????# ##??? | | ???# ####??????# ### ###???## ##???? | | ???# #?????????# ## ###### ##???? | | ?#?# #????????## # ## ##??? | | #??# ##?#?????## ##?? | | ##?# #???????# #?? | | ##### #?##??### ##? | | ##?# ##??###?# ##?? | | ### #??## ### ## ##??? | | ## #### ## #### #???? | | ## #### ##??# #???? | | #### #### ##?#####???# ####?? | | #### #??######?##???????## ###????? | +----------------------------------------------------+ Best States ------------- Heat Dissipation 25 Energy Generation 10 Energy Capacity 250 Matter Stores 300 Matter Capacity 300 Sight Range 16 Terrain Scan Range 16 Terrain Scan Density 10 Evasion (%) 55 Melee Accuracy 5 Item Schematics ----------------- Hammer | -10/Materials | Hacked Robot Schematics ------------------ None Fabricated ------------ Nothing Repaired ---------- Nothing Studied --------- None Alien Tech Used ----------------- None Achievements -------------- None Challenges ------------ None Game ------ Seed UltimateCargoCompanion Manual? 0 Play Time 00:25:30 Cumulative 40.0 hours Start 2026.04.16 @ 07:48:13 End 2026.04.16 @ 08:16:49 Sessions 1 Manual Loads 0 Difficulty Rogue Special Mode None Game No. 20 Rogue 11 Adventurer 0 Explorer 9 Win Type - Total 2 Types 2/0/0/0/0/0/0/0/0/0 Lore% 19 Gallery% 30 Achievement% 37 Wizard Run 0 Options --------- Layout 0 ASCII 0 Keyboard 0 Movement Mouse Keybinds 0 Fullscreen 1 Font 18/SmallcapsGlow Map View 76x50 Zoom Use 0% Tactical HUD 1 Map Filters NONE Filters NONE Steam 1 RUN: 087f87f2-986b-4863-bf1a-525e7a788d9a